Cogmind - Beta 12 @@@ ROGUE MODE // 2023.03.12 @ 14:06:58 // Winter2019/RPGLIKE Player: Wayland Result: Destroyed by as-23698 with Assembled Rifle Performance ------------- Evolutions (1) 500 Regions Visited (4) 800 Robots Destroyed (3) 15 Value Destroyed (30) 30 Prototype IDs (0) 0 Alien Tech Used (0) 0 Bonus (200) 200 TOTAL SCORE: 1545 Bonus ------- Pacifist 200 Cogmind --------- Core Integrity 0/650 Matter 221/300 Energy 250/250 System Corruption 0% Temperature Cool (0) Movement Rolling (80) Location -9/Mines Parts ------- > --- POWER (1) -------- Ion Engine > --- PROPULSION (1) --- Wheel > --- UTILITY (2) ------ Terrain Scanner Targeting Computer > --- WEAPON (2) ------- Light Assault Rifle Rocket Launcher > --- INVENTORY (2) ---- Wheel Mining Laser Peak State ------------ > --- POWER ------------ Ion Engine > --- PROPULSION ------- Wheel > --- UTILITY ---------- Terrain Scanner Targeting Computer > --- WEAPON ----------- Light Assault Rifle Rocket Launcher > --- INVENTORY -------- Wheel Mining Laser [Rating: 7] Favorites ----------- Power Ion Engine Engine Ion Engine Propulsion Wheel Wheel Wheel Utility Terrain Scanner Device Terrain Scanner Processor Targeting Computer Weapon Light Assault Rifle Ballistic Gun Light Assault Rifle Launcher Rocket Launcher Special Weapon Mining Laser Build | -11 -10 -10 -9 -9 ------- Run | Jun Mat Min Mat Min Slots Evolved 2 | 2 . . . . Power . | . . . . . Propulsion . | . . . . . Utility 1 | 1 . . . . Weapon 1 | 1 . . . . Parts Attached 9 | 4 1 2 . 2 Power 1 | 1 . . . . Engine 1 | 1 . . . . Core . | . . . . . Reactor . | . . . . . Propulsion 1 | 1 . . . . Treads . | . . . . . Leg . | . . . . . Wheel 1 | 1 . . . . Hover . | . . . . . Flight . | . . . . . Utility 2 | . . 2 . . Device 1 | . . 1 . . Storage . | . . . . . Processor 1 | . . 1 . . Hackware . | . . . . . Protection . | . . . . . Artifact . | . . . . . Weapon 5 | 2 1 . . 2 Energy Gun . | . . . . . Energy Cannon . | . . . . . Ballistic Gun 3 | 2 . . . 1 Ballistic Cannon . | . . . . . Launcher 1 | . . . . 1 Special Weapon 1 | . 1 . . . Impact Weapon . | . . . . . Slashing Weapon . | . . . . . Piercing Weapon . | . . . . . Special Melee Weapon . | . . . . . Unidentified Prototypes . | . . . . . Parts Lost . | . . . . . Power . | . . . . . Propulsion . | . . . . . Utility . | . . . . . Weapon . | . . . . . Highest Loss Streak . | . . . . . To Critical Strikes . | . . . . . Average Slot Usage (%) 92 | . 66 83 100 100 Engine 16 | . 16 16 16 16 Wheel 16 | . 16 16 16 16 Device 12 | . . 8 16 16 Processor 12 | . . 8 16 16 Ballistic Gun 22 | . 33 16 16 23 Launcher 3 | . . . . 7 Special Weapon 6 | . . 16 16 1 Naked Turns . | . . . . . Heaviest Build 11 | 7 7 8 8 11 Greatest Support 20 | 15 15 15 20 20 Greatest Overweight (x) . | . . . . . Average Overweight (x) . | . . . . . Largest Inventory Capacity 2 | 2 2 2 2 2 Average Capacity 1 | 1 2 2 2 2 Most Carried 2 | 2 2 2 2 2 Average Carried 1 | 1 2 2 2 2 Final Capacity 2 | 2 2 2 2 2 Final Carried 2 | 2 2 2 2 2 Class Distribution -------------------- 66% | Mutant 33% | Hacker-Mutant Dominant Class ---------------- Mutant | -10/Materials Mutant | -10/Mines Mutant | -9/Materials Hacker-Mutant | -9/Mines Resources | -11 -10 -10 -9 -9 ----------- Run | Jun Mat Min Mat Min Matter Collected 298 | 129 . 24 . 145 Remotely . | . . . . . Salvage Created 44 | . . . . 44 Parts 8 | . . . . 8 Haulers Intercepted . | . . . . . Recyclers Shooed . | . . . . . Parts Field Recycled . | . . . . . Retrieved Matter . | . . . . . Parts Self-Destructed . | . . . . . Prevented . | . . . . . Kills | -11 -10 -10 -9 -9 ------- Run | Jun Mat Min Mat Min Combat Hostiles Destroyed 9 | . . . . 9 Guns 4 | . . . . 4 AOE 5 | . . . . 5 Classes Destroyed 2 | . . . . 2 Swarmer 3 | . . . . 3 Assembled 6 | . . . . 6 Best Kill Streak 6 | . . . . 6 Combat Bots Only 6 | . . . . 6 Max Kills in Single Turn 2 | . . . . 2 Gunslinging . | . . . . . Exploded 2 | . . . . 2 Melee . | . . . . . Uniques/NPCs Destroyed . | . . . . . Combat | -11 -10 -10 -9 -9 -------- Run | Jun Mat Min Mat Min Damage Taken 859 | . . . . 859 Core 695 | . . . . 695 Absorbed by Shields . | . . . . . Redirected to Core 554 | . . . . 554 Core Remaining (%) 100 | 100 . 100 . . Volleys Fired 21 | . 1 . 3 17 Largest 2 | . 2 . 1 2 Hottest 100 | . 40 . 100 40 Shots Fired 30 | . 2 . 3 25 Gun 21 | . 2 . . 19 Cannon . | . . . . . Launcher 6 | . . . . 6 Special 3 | . . . 3 . Kinetic 21 | . 2 . . 19 Thermal 3 | . . . 3 . Explosive 6 | . . . . 6 Electromagnetic . | . . . . . Robot Hit Streak 4 | . . . . 4 Robot Miss Streak 5 | . . . . 5 Penetration Max . | . . . . . Secondary Targets . | . . . . . Shots Hit Robots 12 | . . . . 12 Core Hits 19 | . 2 . . 17 Critical Kills . | . . . . . Critical Parts Destroyed . | . . . . . Critical Strikes . | . . . . . Melee Attacks . | . . . . . Impact . | . . . . . Slashing . | . . . . . Piercing . | . . . . . Sneak Attacks . | . . . . . Combat Hostiles . | . . . . . Follow-up Attacks . | . . . . . Damage Inflicted 550 | . 12 . . 538 Guns 106 | . 12 . . 94 Cannons . | . . . . . Explosions 444 | . . . . 444 Melee . | . . . . . Ramming . | . . . . . Kinetic 106 | . 12 . . 94 Thermal . | . . . . . Explosive 444 | . . . . 444 Electromagnetic . | . . . . . Impact . | . . . . . Slashing . | . . . . . Piercing . | . . . . . Highest Corruption . | . . . . . Average Corruption . | . . . . . Corruption Purged . | . . . . . Corruption Blocked . | . . . . . Overload Shots . | . . . . . Overflow Damage 21 | . . . . 21 Projectiles . | . . . . . Explosions 21 | . . . . 21 Melee . | . . . . . Knockbacks . | . . . . . Impact . | . . . . . Kinetic . | . . . . . Secondary . | . . . . . Self-Inflicted Damage 143 | . . . . 143 Shots 4 | . . . . 4 Rammed . | . . . . . Targets Rammed . | . . . . . Kicked . | . . . . . Crushed . | . . . . . Highest Temperature 40 | . . . 40 . Average Temperature 25 | . . . 25 . Received Heat Transfer . | . . . . . Siege Activations . | . . . . . Robots Corrupted . | . . . . . Combat Hostiles . | . . . . . Parts Fried . | . . . . . Impact Corruptions . | . . . . . Robots Melted . | . . . . . Combat Hostiles . | . . . . . Parts Melted . | . . . . . Heat Transferred . | . . . . . Parts Sabotaged . | . . . . . Parts Stolen . | . . . . . Parts Stripped . | . . . . . Power Chain Reactions . | . . . . . Missiles Intercepted . | . . . . . Alert | -11 -10 -10 -9 -9 ------- Run | Jun Mat Min Mat Min Peak Influence 115 | . 37 14 33 115 Initial 14 | . . 14 5 12 Average 40 | . 22 14 14 73 Maximum Alert Level . | . . . . . Low Security (%) 100 | 100 100 100 100 100 Level 1 . | . . . . . Level 2 . | . . . . . Level 3 . | . . . . . Level 4 . | . . . . . Level 5 . | . . . . . High Security . | . . . . . Max Security . | . . . . . Squads Dispatched . | . . . . . Investigation . | . . . . . Extermination . | . . . . . Reinforcement . | . . . . . Assault . | . . . . . Garrison . | . . . . . Intercept . | . . . . . Searches Triggered . | . . . . . Construction Impeded . | . . . . . Haulers Reinforced . | . . . . . Active Scanning Responses . | . . . . . Cargo Convoy Interrupts . | . . . . . Stealth | -11 -10 -10 -9 -9 --------- Run | Jun Mat Min Mat Min Distress Signals . | . . . . . Communications Jammed . | . . . . . Distress Signals . | . . . . . Times Spotted 26 | . 2 . 2 22 Peak Tracking Total 14 | . 1 . 3 14 Tactical Retreats 2 | . . . . 2 Traps | -11 -10 -10 -9 -9 ------- Run | Jun Mat Min Mat Min Traps Triggered . | . . . . . Indirectly . | . . . . . Trap Hack Attempts . | . . . . . Triggered . | . . . . . Disarmed . | . . . . . Reprogrammed . | . . . . . Reused . | . . . . . Traps Extracted . | . . . . . Installed . | . . . . . Triggered . | . . . . . Machines | -11 -10 -10 -9 -9 ---------- Run | Jun Mat Min Mat Min Machines Disabled . | . . . . . Max in Single Turn . | . . . . . Machines Repaired . | . . . . . Machines Sabotaged . | . . . . . Overloaded Fab Kills . | . . . . . Hacking | -11 -10 -10 -9 -9 --------- Run | Jun Mat Min Mat Min Machines Accessed 3 | . 2 . 1 . Terminals 3 | . 2 . 1 . Fabricators . | . . . . . Repair Stations . | . . . . . Recycling Units . | . . . . . Scanalyzers . | . . . . . Garrison Access . | . . . . . Total Hacks 9 | . 5 . 4 . Successful 6 | . 3 . 3 . Failed 3 | . 2 . 1 . Catastrophic 1 | . 1 . . . Database Lockouts . | . . . . . Manual 5 | . 2 . 3 . Terminals 9 | . 5 . 4 . Fabricators . | . . . . . Repair Stations . | . . . . . Recycling Units . | . . . . . Scanalyzers . | . . . . . Garrison Access . | . . . . . Terminal Hacks 5 | . 2 . 3 . Part Schematic 1 | . 1 . . . Branch Access Points 2 | . 1 . 1 . Unreport Threat 2 | . . . 2 . Fabricator Hacks . | . . . . . Repair Station Hacks . | . . . . . Recycling Unit Hacks . | . . . . . Scanalyzer . | . . . . . Garrison Access Hacks . | . . . . . Unauthorized Hacks 1 | . 1 . . . Terminals 1 | . 1 . . . Botnet 1 | . 1 . . . Fabricators . | . . . . . Repair Stations . | . . . . . Recycling Units . | . . . . . Scanalyzers . | . . . . . Garrison Access . | . . . . . Data Cores Recovered . | . . . . . Used . | . . . . . Hacking Detections 2 | . 1 . 1 . Full Trace Events . | . . . . . Feedback Events . | . . . . . Feedback Blocked . | . . . . . Robot Schematics Acquired . | . . . . . Robots Built . | . . . . . Authchips . | . . . . . Time . | . . . . . Total Robot Build Rating . | . . . . . Part Schematics Acquired 1 | . 1 . . . Parts Built . | . . . . . Authchips . | . . . . . Time . | . . . . . Total Part Build Rating . | . . . . . Parts Repaired . | . . . . . Time . | . . . . . Parts Recycled . | . . . . . Recycled Matter . | . . . . . Retrieved Matter . | . . . . . Retrieved Components . | . . . . . Parts Scanalyzed . | . . . . . Part Schematics Acquired . | . . . . . Parts Damaged . | . . . . . Bothacking | -11 -10 -10 -9 -9 ------------ Run | Jun Mat Min Mat Min Used RIF Installer . | . . . . . Robots Hacked . | . . . . . Non-combat . | . . . . . Combat . | . . . . . Robot Hacks Applied . | . . . . . Relay Couplers Released . | . . . . . Fabnet Peak Effective % . | . . . . . Robots Rewired . | . . . . . Allies Hacked . | . . . . . Hacks Repelled . | . . . . . Allies | -11 -10 -10 -9 -9 -------- Run | Jun Mat Min Mat Min Total Allies . | . . . . . Largest Group . | . . . . . Highest-Rated Group . | . . . . . Highest-Rated Ally . | . . . . . Total Orders . | . . . . . Ally Attacks . | . . . . . Total Damage . | . . . . . Kills . | . . . . . Allies Corrupted . | . . . . . Allies Melted . | . . . . . Intel | -11 -10 -10 -9 -9 ------- Run | Jun Mat Min Mat Min Robot Analysis Total . | . . . . . Derelict Logs Recovered . | . . . . . Drone Launches . | . . . . . Drone Recoveries . | . . . . . Exploration | -11 -10 -10 -9 -9 ------------- Run | Jun Mat Min Mat Min Turns Passed 413 | 33 63 38 94 185 Spaces Moved 412 | 32 73 44 103 160 Core 1 | 1 . . . . Treads . | . . . . . Legs . | . . . . . Wheels 411 | 31 73 44 103 160 Hover . | . . . . . Flight . | . . . . . Fastest Speed 50 | 50 80 80 80 80 Average Speed 79 | 79 80 80 80 80 Slowest Speed 80 | 80 80 80 80 80 Overloaded Moves . | . . . . . Propulsion Burnouts . | . . . . . Robots Hopped . | . . . . . Cave-ins Triggered . | . . . . . Exploration Rate (%) 19 | 3 17 14 18 46 Regions Visited 4 Branch Regions 2 Pre-discovered Areas . | . . . . . Known Exits Taken 2 | . 1 . 1 . Unknown Exits Taken 2 | 1 . 1 . . Scrap Searched 4 | . . 1 . 3 Spaces Dug 3 | . . . 3 . Terrain Destroyed 69 | . . . 3 66 Melee . | . . . . . Projectile 3 | . . . 3 . AOE 66 | . . . . 66 Terrain Rammed . | . . . . . Walls Destroyed . | . . . . . Machines Disabled . | . . . . . Actions | -11 -10 -10 -9 -9 --------- Run | Jun Mat Min Mat Min Total 458 | 37 75 45 105 196 Wait 13 | . . . . 13 Move 408 | 31 72 43 102 160 Hop . | . . . . . Pick Up 2 | 2 . . . . Fast Attach 8 | 4 1 2 . 1 Attach . | . . . . . Detach . | . . . . . Swap 1 | . . . . 1 Drop 2 | . 1 . . 1 Fire 21 | . 1 . 3 17 Melee . | . . . . . Ram . | . . . . . Kick . | . . . . . Crush . | . . . . . Escape Stasis . | . . . . . Rewire . | . . . . . Trap . | . . . . . Miscellaneous 3 | . . . . 3 Route ------- -11/Junkyard -10/Materials (discovered 2 exits: *Min x2) -10/Mines -9/Materials (discovered 2 exits: *Min x2) -9/Mines History --------- Turn | Location | Event 5 | -11/Junkyard | Upgraded with Utility slot (x1) 5 | -11/Junkyard | Upgraded with Weapon slot (x1) 6 | -11/Junkyard | Discovered new exit (range 15) 34 | -11/Junkyard | Entered Materials 36 | -10/Materials | Identified exit to Mines 97 | -10/Materials | Entered Mines 115 | -10/Mines | Met a Derelict bent on vengeance 124 | -10/Mines | Discovered new exit (range 14) 135 | -10/Mines | Entered Materials 137 | -9/Materials | Reached level 2 164 | -9/Materials | Identified exit to Mines 229 | -9/Materials | Entered Mines 266 | -9/Mines | Reached level 3 289 | -9/Mines | Assembled infested the area 294 | -9/Mines | Assisted by a Guerilla fighting off Assembled 393 | -9/Mines | Core integrity fell below 50% 409 | -9/Mines | Core integrity fell below 20% 414 | -9/Mines | Destroyed by as-23698 with Assembled Rifle Last Messages --------------- 00343_ Found Terrain Scanner. 00343_ Found Hpw. Tractor Beam. 00343_ Found Hvy. EM Pulse Gun. 00343_ Found 13 Matter. 00346_ U-05 Engineer lays Concrete. 00352_ as-81253 sneak attacks. 00353_ U-05 Engineer destroyed. 00362_ Knocked back. 00369_ as-05889 sneak attacks. 00369_ R-06 Scavenger destroyed. 00389_ as-01956 destroyed. 00389_ as-25861 destroyed. 00398_ Destroyed Asb. Hover Unit. 00398_ as-71082 destroyed. 00400_ as-05889 destroyed. 00405_ The unstable cave ceiling collapses. 00408_ Destroyed Asb. Hover Unit. 00408_ as-81253 destroyed. 00410_ The unstable cave ceiling collapses. 00413_ as-92002 destroyed. Map ----- +----------------------------------------------------+ | | | | | | | | | | | | | | | | | | | | | | | | | | | | | | | | | | | ?????????????????#???????????????????????????????? | | ?????????????????????????????????????????????????? | | ????????????????????????#????????????????????????? | | ?????????????????????????????????????????????????? | | ??????????????????#????????????#?????????????????? | | ????????????????????##?##?##?????????????????????? | | ???????????????????## # # ##????????????????????? | | ??????????????????### #?#??????????????????? | | ???????????????????# # @ #??????????#?????????? | | ???????????????????# ##????????????????????? | | ??????????????????## #???????????#??#??????? | | ????????????????# #?????????#???? ##????# | | ????????????????# ###??#######?????# ?????? | | ????????????????# #??### ##????# ?????? | | ???????????????# # #???# #????# ??### | | ??????????????### a##??# #?????# ### | | ????????????????# #### #???????# # | | ???????????????## # ## #???????## | | ????????????????####### ##?????## | | ?????????????????????##a ##????# | | ????????????????????## ###??# | | ???????????????????## ### ##??# | | ????????????#?????## %% ##?## ##?#### | | ??????????????????# % #???##%= ##???## | | ??????????????????# ######???##= ##?### " | | ??????????????????## #???????## #???##"%" | | ???????????????????## #??????## #????##" | | ????????????????????# #??#?#?# " % ######## | | ????????????????????# #??????# %%%% *%% | | ????????????????????# #??????# %% | | ????????????????????# #??????## ############ | | ????????????????????# #???????## #??????????## | | ????????????????????# #????????# ####?????#??### | +----------------------------------------------------+ Best States ------------- Heat Dissipation 25 Energy Generation 10 Energy Capacity 250 Matter Stores 300 Matter Capacity 300 Sight Range 18 Terrain Scan Range 14 Terrain Scan Density 10 Resistance: KI 10 Resistance: TH 10 Evasion (%) 44 Targeting Accuracy 5 Offensive Hacking 10 Defensive Hacking 15 Item Schematics ----------------- Structural Scanner | -10/Materials | Hacked Robot Schematics ------------------ None Fabricated ------------ Nothing Alien Tech Used ----------------- None Achievements -------------- None Challenges ------------ None RPGLIKE | -11 -10 -10 -9 -9 --------- Run | Jun Mat Min Mat Min Levels Raised 2 | . . . 1 1 XP Earned 6090 | 3000 110 600 1530 850 XP Spent 5975 | 2950 . . 1100 1925 Upgrades 18 | 11 . . 2 5 Utility Slot 1 | 1 . . . . Weapon Slot 1 | 1 . . . . Core Integrity 1 | . . . . 1 Mass Support 2 | 1 . . 1 . Inventory Capacity 2 | 2 . . . . Sight Range 2 | 2 . . . . Hack Attack % 2 | 1 . . . 1 Hack Defense % 3 | 1 . . 1 1 KI Resistance % 2 | 1 . . . 1 TH Resistance % 2 | 1 . . . 1 Protomatter Created 17 | . . . . 17 Integrity Restored 41 | . . . . 41 Core 41 | . . . . 41 Protomatter Decayed 3 | . . . . 3 Game ------ Seed NeutronPhasingDetonator Manual? 0 Play Time 00:10:32 Cumulative 125.8 hours Start 2023.03.12 @ 13:57:28 End 2023.03.12 @ 14:06:58 Sessions 1 Manual Loads 0 Difficulty Rogue Special Mode Winter2019/RPGLIKE Game No. 195 Rogue 195 Adventurer 0 Explorer 0 Win Type - Total 2 Types 1/0/1/0/0/0/0/0/0 Lore% 50 Gallery% 59 Achievement% 50 Wizard Run 0 Options --------- ASCII 0 Keyboard 0 Movement Mouse Keybinds 0 Fullscreen 2 Font 24/Proggy Map View 113x50 Tactical HUD 1 Map Filters NONE Filters NONE Steam 1 RUN: 86ecec41-9bdb-477c-91f6-292a11592860